[Event "VIII Lorca Open-A 2019"]
[Site "Lorca"]
[Date "2019.12.28"]
[Round "4.4"]
[White "Bjerre, Jonas Buhl"]
[Black "Real De Azua, Ernesto"]
[Result "1/2-1/2"]
[ECO "B12"]
[WhiteElo "2526"]
[BlackElo "2450"]
[Annotator "ChessBase"]
[PlyCount "45"]
[EventDate "2019.12.26"]
[EventType "swiss"]
[EventCountry "ESP"]
[SourceTitle "playchess.com"]
[Source "ChessBase"]
[SourceQuality "1"]
[TimeControl "5400+30"]

1. e4 {[%emt 1:30:30]} c6 {[%emt 1:30:30]} 2. d4 {[%emt 0:00:30]} d5 {[%emt 0:00:30]} 3. e5 {[%emt 0:00:30]} Bf5 {[%emt 0:00:30]} 4. Nd2 {[%emt 0:00:30]} e6 {[%emt 0:00:30]} 5. Nb3 {[%emt 0:00:30]} Nd7 {[%emt 0:00:30]} 6. Nf3 {[%emt 0:00:30]} a6 {[%emt 0:00:30]} 7. Be3 {[%emt 0:00:30]} Rc8 {[%emt 0:00:30]} 8. Be2 {[%emt 0:00:30]} c5 {[%emt 0:00:30]} 9. c3 {[%emt 0:00:30]} c4 {[%emt 0:00:30]} 10. Nbd2 {[%emt 0:00:30]} h6 {[%emt 0:00:30]} 11. O-O {[%emt 0:00:30]} Bh7 {[%emt 0:00:30]} 12. Ne1 {[%emt 0:00:30]} Ne7 13. f4 b5 14. a3 Nb6 15. g4 h5 16. h3 hxg4 17. hxg4 Be4 18. Bf3 Bxf3 19. Ndxf3 f5 20. exf6 gxf6 21. Ng2 Kd7 22. Qe2 Qe8 23. Bf2 1/2-1/2

[Event "VIII Lorca Open-A 2019"]
[Site "Lorca"]
[Date "2019.12.28"]
[Round "4.5"]
[White "Peng, Li Min"]
[Black "Maiorov, Nikita"]
[Result "1/2-1/2"]
[ECO "A14"]
[WhiteElo "2451"]
[BlackElo "2523"]
[Annotator "RC"]
[PlyCount "30"]
[EventDate "2019.12.26"]
[EventType "swiss"]
[EventCountry "ESP"]
[SourceTitle "playchess.com"]
[Source "ChessBase"]
[SourceQuality "1"]
[TimeControl "5400+30"]

1. Nf3 {[%emt 1:30:30]} Nf6 {[%emt 0:03:23]} 2. c4 {[%emt 0:00:00]} e6 {[%emt 0:00:31]} 3. g3 {[%emt 0:00:00]} d5 {[%emt 0:00:59]} 4. Bg2 {[%emt 0:00:00]} Be7 {[%emt 0:00:10]} 5. O-O {[%emt 0:00:00]} O-O {[%emt 0:00:05]} 6. b3 {[%emt 0:00:00]} b6 {[%emt 0:00:38]} 7. e3 {[%emt 0:00:00]} Bb7 {[%emt 0:00:06]} 8. Nc3 {[%emt 0:00:00]} c5 {[%emt 0:01:16]} 9. Bb2 {[%emt 0:00:00]} dxc4 {[%emt 0:02:04]} 10. bxc4 {[%emt 0:00:00]} Nc6 {[%emt 0:00:09]} 11. Qe2 {[%emt 0:00:00]} a6 {[%emt 0:03:49]} 12. d4 {[%emt 0:00:00]} cxd4 {[%emt 0:05:19]} 13. exd4 {[%emt 0:00:00]} Na5 {[%emt 0:00:20]} 14. Nd1 {[%emt 0:00:00]} b5 15. c5 {[%emt 0:00:00]} Nc4 1/2-1/2

[Event "VIII Lorca Open-A 2019"]
[Site "Lorca"]
[Date "2019.12.28"]
[Round "4.6"]
[White "Raja Harshit"]
[Black "Lopez Martinez, Josep Manuel"]
[Result "*"]
[ECO "B11"]
[WhiteElo "2447"]
[BlackElo "2561"]
[Annotator "ChessBase"]
[PlyCount "36"]
[EventDate "2019.12.26"]
[EventType "swiss"]
[EventCountry "ESP"]
[SourceTitle "playchess.com"]
[Source "ChessBase"]
[SourceQuality "1"]
[TimeControl "5400+30"]

1. e4 {[%emt 1:30:30]} c6 {[%emt 1:30:30]} 2. Nc3 {[%emt 0:00:30]} d5 {[%emt 0:00:30]} 3. Nf3 {[%emt 0:00:30]} Bg4 {[%emt 0:00:30]} 4. h3 {[%emt 0:00:30]} Bxf3 {[%emt 0:00:30]} 5. Qxf3 {[%emt 0:00:30]} e6 {[%emt 0:00:30]} 6. Be2 {[%emt 0:00:30]} Nf6 {[%emt 0:00:30]} 7. O-O {[%emt 0:00:30]} Bb4 {[%emt 0:00:30]} 8. e5 {[%emt 0:00:30]} Ng8 {[%emt 0:00:30]} 9. Qg4 {[%emt 0:00:30]} Bf8 {[%emt 0:00:30]} 10. d4 Nd7 11. Bd3 g6 12. Ne2 Qb6 13. c4 dxc4 14. Bxc4 Ne7 15. a4 a5 16. Ra3 Nf5 17. Rf3 Qb4 18. b3 Nb8 {[%emt 0:04:30]} *

[Event "VIII Lorca Open-A 2019"]
[Site "Lorca"]
[Date "2019.12.28"]
[Round "4.6"]
[White "Raja Harshit"]
[Black "Lopez Martinez, Josep Manuel"]
[Result "0-1"]
[ECO "B11"]
[WhiteElo "2447"]
[BlackElo "2561"]
[Annotator "RC"]
[PlyCount "80"]
[EventDate "2019.12.26"]
[EventType "swiss"]
[EventCountry "ESP"]
[SourceTitle "playchess.com"]
[Source "ChessBase"]
[SourceQuality "1"]
[TimeControl "5400+30"]

1. e4 {[%emt 1:30:30]} c6 {[%emt 1:30:30]} 2. Nc3 {[%emt 0:00:30]} d5 {[%emt 0:00:30]} 3. Nf3 {[%emt 0:00:30]} Bg4 {[%emt 0:00:30]} 4. h3 {[%emt 0:00:30]} Bxf3 {[%emt 0:00:30]} 5. Qxf3 {[%emt 0:00:30]} e6 {[%emt 0:00:30]} 6. Be2 {[%emt 0:00:30]} Nf6 {[%emt 0:00:30]} 7. O-O {[%emt 0:00:30]} Bb4 {[%emt 0:00:30]} 8. e5 {[%emt 0:00:30]} Ng8 {[%emt 0:00:30]} 9. Qg4 {[%emt 0:00:30]} Bf8 {[%emt 0:00:30]} 10. d4 Nd7 11. Bd3 g6 12. Ne2 Qb6 13. c4 dxc4 14. Bxc4 Ne7 15. a4 a5 16. Ra3 Nf5 17. Rf3 Qb4 18. b3 Nb6 19. Bg5 Nxc4 20. bxc4 Qxc4 21. Nc3 h6 22. Bf6 h5 23. Qe4 Bg7 24. Bxg7 Nxg7 25. Qb1 Nf5 26. Ne4 O-O 27. Nf6+ Kg7 28. Nd7 Nxd4 29. Re3 Rfd8 30. Nb6 Qb4 31. Nxa8 Rxa8 32. Rc1 Rd8 33. Qa2 Rd5 34. Re4 Qb3 35. Qxb3 Nxb3 36. Rce1 Nc5 37. Rc4 b5 38. Rc2 b4 39. Rec1 Nxa4 40. Rxc6 Nc3 0-1

[Event "VIII Lorca Open-A 2019"]
[Site "Lorca"]
[Date "2019.12.28"]
[Round "5.1"]
[White "Bernadskiy, Vitaliy"]
[Black "Grigoryan, Karen H."]
[Result "1/2-1/2"]
[ECO "B48"]
[WhiteElo "2593"]
[BlackElo "2621"]
[Annotator "ChessBase"]
[PlyCount "34"]
[EventDate "2019.12.26"]
[EventType "swiss"]
[EventCountry "ESP"]
[SourceTitle "playchess.com"]
[Source "ChessBase"]
[SourceQuality "1"]
[TimeControl "5400+30"]

1. e4 {[%emt 0:00:00]} c5 {[%emt 0:00:17]} 2. Nf3 {[%emt 0:00:00]} e6 {[%emt 0:00:16]} 3. d4 {[%emt 0:00:05]} cxd4 {[%emt 0:00:05]} 4. Nxd4 {[%emt 0:00:03]} Nc6 {[%emt 0:00:05]} 5. Nc3 {[%emt 0:00:09]} Qc7 {[%emt 0:00:07]} 6. Be3 {[%emt 0:02:15]} a6 {[%emt 0:00:26]} 7. Qd2 {[%emt 0:00:04]} Nf6 {[%emt 0:00:05]} 8. f4 {[%emt 0:00:36]} Bb4 {[%emt 0:03:35]} 9. Bd3 {[%emt 0:00:05]} Na5 {[%emt 0:02:18]} 10. a3 {[%emt 0:00:19]} Bxc3 {[%emt 0:00:08]} 11. Qxc3 {[%emt 0:00:04]} Qxc3+ {[%emt 0:00:05]} 12. bxc3 {[%emt 0:00:02]} d5 {[%emt 0:00:23]} 13. exd5 {[%emt 0:00:50]} exd5 {[%emt 0:01:10]} 14. Nb3 {[%emt 0:02:24]} Nc4 {[%emt 0:04:03]} 15. Bd4 {[%emt 0:01:16]} Ne4 {[%emt 0:02:06]} 16. Bxe4 {[%emt 0:06:18]} dxe4 {[%emt 0:00:14]} 17. Nd2 {[%emt 0:00:04]} Nxd2 {[%emt 0:01:25]} 1/2-1/2

[Event "VIII Lorca Open-A 2019"]
[Site "Lorca"]
[Date "2019.12.28"]
[Round "5.3"]
[White "Lopez Martinez, Josep Manuel"]
[Black "Marin, Mihail"]
[Result "1/2-1/2"]
[ECO "A81"]
[WhiteElo "2561"]
[BlackElo "2496"]
[Annotator "RC"]
[PlyCount "101"]
[EventDate "2019.12.26"]
[EventType "swiss"]
[EventCountry "ESP"]
[SourceTitle "playchess.com"]
[Source "ChessBase"]
[SourceQuality "1"]
[TimeControl "5400+30"]

1. d4 {[%emt 0:04:29]} f5 {[%emt 0:00:00]} 2. g3 {[%emt 0:03:25]} Nf6 {[%emt 0:00:00]} 3. Bg2 {[%emt 0:00:09]} g6 {[%emt 0:00:00]} 4. Nf3 {[%emt 0:01:07]} Bg7 {[%emt 0:00:03]} 5. O-O {[%emt 0:00:32]} O-O {[%emt 0:00:06]} 6. b3 {[%emt 0:01:33]} d6 {[%emt 0:00:07]} 7. Bb2 {[%emt 0:00:07]} Qe8 {[%emt 0:00:05]} 8. Nbd2 {[%emt 0:00:24]} Nc6 {[%emt 0:00:05]} 9. Nc4 {[%emt 0:02:47]} e6 {[%emt 0:03:24]} 10. a4 {[%emt 0:00:41]} a5 {[%emt 0:00:20]} 11. Ne1 {[%emt 0:02:39]} b6 {[%emt 0:06:16]} 12. Nd3 {[%emt 0:03:30]} Bb7 {[%emt 0:00:09]} 13. Na3 {[%emt 0:00:57]} Qc8 {[%emt 0:03:23]} 14. c4 {[%emt 0:07:27]} Nd8 {[%emt 0:06:07]} 15. f3 {[%emt 0:01:49]} Nf7 {[%emt 0:02:19]} 16. Qc2 {[%emt 0:00:36]} Re8 {[%emt 0:03:29]} 17. Rae1 {[%emt 0:01:10]} e5 {[%emt 0:01:08]} 18. d5 {[%emt 0:02:34]} c6 {[%emt 0:07:32]} 19. dxc6 {[%emt 0:04:08]} Bxc6 {[%emt 0:04:22]} 20. e4 {[%emt 0:00:12]} Qb7 {[%emt 0:02:21]} 21. Nb5 {[%emt 0:01:05]} Rad8 {[%emt 0:03:38]} 22. Nc3 {[%emt 0:08:49]} Ng5 {[%emt 0:04:35]} 23. Nd5 {[%emt 0:01:33]} Nxd5 {[%emt 0:02:57]} 24. exd5 {[%emt 0:00:33]} Bd7 {[%emt 0:00:06]} 25. f4 {[%emt 0:01:27]} Nf7 {[%emt 0:06:53]} 26. Qf2 {[%emt 0:08:05]} e4 {[%emt 0:04:34]} 27. Bxg7 {[%emt 0:00:30]} Kxg7 {[%emt 0:00:04]} 28. Qb2+ {[%emt 0:03:31]} Kg8 {[%emt 0:00:06]} 29. Nc1 {[%emt 0:00:31]} Qc7 {[%emt 0:02:02]} 30. Ne2 {[%emt 0:00:10]} Rc8 {[%emt 0:01:24]} 31. Nd4 {[%emt 0:00:18]} Qd8 {[%emt 0:00:38]} 32. Kh1 {[%emt 0:00:56]} Qf6 {[%emt 0:00:47]} 33. Qf2 {[%emt 0:00:52]} Nd8 {[%emt 0:02:42]} 34. g4 {[%emt 0:01:20]} Nb7 {[%emt 0:02:14]} 35. gxf5 {[%emt 0:03:12]} gxf5 {[%emt 0:04:46]} 36. Qe3 {[%emt 0:00:31]} Nc5 {[%emt 0:00:51]} 37. Rg1 {[%emt 0:00:23]} Kh8 {[%emt 0:10:06]} 38. Bf1 {[%emt 0:00:32]} Rg8 {[%emt 0:00:28]} 39. Be2 {[%emt 0:02:04]} Rxg1+ {[%emt 0:02:19]} 40. Rxg1 {[%emt 0:01:16]} Rg8 {[%emt 0:00:17]} 41. Rxg8+ {[%emt 0:00:41]} Kxg8 {[%emt 0:00:06]} 42. Kg1 {[%emt 0:01:22]} Kf8 {[%emt 0:02:06]} 43. Kg2 {[%emt 0:13:20]} Qh4 {[%emt 0:01:35]} 44. Qf2 {[%emt 0:01:52]} Qxf2+ {[%emt 0:02:16]} 45. Kxf2 {[%emt 0:00:13]} Ke7 {[%emt 0:00:16]} 46. Ke3 {[%emt 0:02:15]} Kf6 {[%emt 0:00:38]} 47. Kd2 {[%emt 0:00:20]} Ke7 {[%emt 0:03:03]} 48. Kc3 {[%emt 0:01:09]} Kf6 {[%emt 0:00:47]} 49. Kd2 {[%emt 0:03:08]} Ke7 {[%emt 0:00:11]} 50. Kc3 {[%emt 0:00:12]} Kf6 {[%emt 0:00:59]} 51. Kd2 {[%emt 0:00:10]} 1/2-1/2

[Event "VIII Lorca Open-A 2019"]
[Site "Lorca"]
[Date "2019.12.28"]
[Round "5.4"]
[White "Krysa, Leandro"]
[Black "Villanueva, Mario"]
[Result "1/2-1/2"]
[ECO "A30"]
[WhiteElo "2527"]
[BlackElo "2486"]
[Annotator "ChessBase"]
[PlyCount "37"]
[EventDate "2019.12.26"]
[EventType "swiss"]
[EventCountry "ESP"]
[SourceTitle "playchess.com"]
[Source "ChessBase"]
[SourceQuality "1"]
[TimeControl "5400+30"]

1. c4 {[%emt 1:30:30]} b6 {[%emt 1:30:30]} 2. Nf3 {[%emt 0:00:30]} Bb7 {[%emt 0:00:30]} 3. g3 {[%emt 0:00:30]} Nf6 {[%emt 0:00:30]} 4. Bg2 {[%emt 0:00:30]} c5 {[%emt 0:00:30]} 5. O-O {[%emt 0:00:30]} g6 {[%emt 0:00:30]} 6. d4 {[%emt 0:00:30]} cxd4 {[%emt 0:00:30]} 7. Qxd4 {[%emt 0:00:30]} Bg7 {[%emt 0:00:30]} 8. Nc3 {[%emt 0:00:30]} d6 {[%emt 0:00:30]} 9. b3 {[%emt 0:00:30]} Nbd7 {[%emt 0:00:30]} 10. Bb2 {[%emt 0:00:30]} O-O {[%emt 0:00:30]} 11. Rfd1 {[%emt 0:00:30]} a6 {[%emt 0:00:30]} 12. Qe3 {[%emt 0:00:30]} Nc5 {[%emt 0:00:30]} 13. Nd4 {[%emt 0:00:30]} Bxg2 {[%emt 0:00:30]} 14. Kxg2 {[%emt 0:00:30]} e6 {[%emt 0:00:30]} 15. Qf3 {[%emt 0:00:30]} Qc7 {[%emt 0:00:30]} 16. Rac1 {[%emt 0:00:30]} Rac8 {[%emt 0:00:30]} 17. h3 {[%emt 0:00:30]} Rfd8 {[%emt 0:00:30]} 18. Kh2 {[%emt 0:00:30]} h5 {[%emt 0:00:30]} 19. Kg1 {[%emt 0:00:30]} 1/2-1/2

[Event "VIII Lorca Open-A 2019"]
[Site "Lorca"]
[Date "2019.12.28"]
[Round "5.5"]
[White "Low, Zhen Yu Cyrus"]
[Black "Bjerre, Jonas Buhl"]
[Result "1-0"]
[ECO "B94"]
[WhiteElo "2420"]
[BlackElo "2526"]
[Annotator "ChessBase"]
[PlyCount "99"]
[EventDate "2019.12.26"]
[EventType "swiss"]
[EventCountry "ESP"]
[SourceTitle "playchess.com"]
[Source "ChessBase"]
[SourceQuality "1"]
[TimeControl "5400+30"]

1. e4 {[%emt 0:00:00]} c5 {[%emt 0:00:00]} 2. Nf3 {[%emt 0:00:00]} d6 {[%emt 0:00:00]} 3. d4 {[%emt 0:00:00]} cxd4 {[%emt 0:00:00]} 4. Nxd4 {[%emt 0:00:03]} Nf6 {[%emt 0:00:02]} 5. Nc3 {[%emt 0:00:11]} a6 {[%emt 0:00:04]} 6. Bg5 {[%emt 0:00:05]} Nbd7 {[%emt 0:00:36]} 7. Bc4 {[%emt 0:00:07]} Qb6 {[%emt 0:01:03]} 8. O-O {[%emt 0:00:14]} e6 {[%emt 0:00:28]} 9. Qd2 {[%emt 0:00:47]} Be7 {[%emt 0:01:42]} 10. Be3 {[%emt 0:00:55]} Nc5 {[%emt 0:00:45]} 11. Nb3 {[%emt 0:00:09]} Qc6 {[%emt 0:01:50]} 12. Nxc5 {[%emt 0:00:31]} dxc5 {[%emt 0:00:14]} 13. Be2 {[%emt 0:00:08]} O-O {[%emt 0:14:54]} 14. e5 {[%emt 0:00:41]} Ne4 {[%emt 0:10:22]} 15. Nxe4 {[%emt 0:00:33]} Qxe4 {[%emt 0:00:05]} 16. f4 {[%emt 0:00:20]} Rd8 {[%emt 0:05:36]} 17. Bf3 {[%emt 0:00:22]} Rxd2 {[%emt 0:10:43]} 18. Bxe4 {[%emt 0:00:12]} Re2 {[%emt 0:01:54]} 19. Rf3 {[%emt 0:07:12]} Bd7 {[%emt 0:04:26]} 20. Bd3 {[%emt 0:02:20]} Rxe3 {[%emt 0:02:27]} 21. Rxe3 {[%emt 0:00:11]} c4 {[%emt 0:00:08]} 22. Bxc4 {[%emt 0:00:20]} Bc5 {[%emt 0:00:06]} 23. Kf2 {[%emt 0:00:51]} Bc6 {[%emt 0:03:44]} 24. g3 {[%emt 0:02:36]} Rd8 {[%emt 0:02:57]} 25. Ke2 {[%emt 0:04:10]} Bxe3 {[%emt 0:00:45]} 26. Kxe3 {[%emt 0:00:08]} Kf8 {[%emt 0:00:55]} 27. Bd3 {[%emt 0:13:05]} Ke7 {[%emt 0:03:42]} 28. b4 {[%emt 0:00:39]} Ba4 {[%emt 0:07:00]} 29. c4 {[%emt 0:00:35]} Kd7 {[%emt 0:02:04]} 30. Rf1 {[%emt 0:02:05]} g6 {[%emt 0:04:00]} 31. g4 {[%emt 0:01:15]} Ke7 {[%emt 0:02:28]} 32. f5 {[%emt 0:02:54]} exf5 {[%emt 0:01:44]} 33. gxf5 {[%emt 0:00:07]} Bd7 {[%emt 0:00:43]} 34. e6 {[%emt 0:05:22]} Be8 {[%emt 0:03:11]} 35. exf7 {[%emt 0:03:53]} Bxf7 {[%emt 0:00:07]} 36. f6+ {[%emt 0:02:23]} Kd6 {[%emt 0:00:39]} 37. Ke4 {[%emt 0:03:08]} b6 {[%emt 0:02:49]} 38. a3 {[%emt 0:09:06]} Kc6 {[%emt 0:01:44]} 39. Rf2 {[%emt 0:01:51]} Rd6 {[%emt 0:01:35]} 40. Bf1 {[%emt 0:01:18]} Re6+ {[%emt 0:01:24]} 41. Kd4 {[%emt 0:00:07]} Rd6+ {[%emt 0:02:11]} 42. Kc3 {[%emt 0:00:12]} Kd7 {[%emt 0:04:09]} 43. Bg2 {[%emt 0:04:59]} Ke8 {[%emt 0:01:16]} 44. c5 {[%emt 0:00:37]} bxc5 {[%emt 0:00:06]} 45. bxc5 {[%emt 0:00:04]} Rd1 {[%emt 0:00:31]} 46. Rf1 {[%emt 0:01:55]} Rd8 {[%emt 0:02:19]} 47. Re1+ {[%emt 0:00:09]} Kf8 {[%emt 0:00:13]} 48. c6 {[%emt 0:00:35]} Be8 {[%emt 0:01:56]} 49. c7 {[%emt 0:00:42]} Rc8 {[%emt 0:00:16]} 50. Re7 {[%emt 0:00:06]} 1-0

[Event "VIII Lorca Open-A 2019"]
[Site "Lorca"]
[Date "2019.12.28"]
[Round "5.6"]
[White "Maiorov, Nikita"]
[Black "Merario Alarcon, Andres"]
[Result "0-1"]
[ECO "E46"]
[WhiteElo "2523"]
[BlackElo "2417"]
[Annotator "ChessBase"]
[PlyCount "131"]
[EventDate "2019.12.26"]
[EventType "swiss"]
[EventCountry "ESP"]
[SourceTitle "playchess.com"]
[Source "ChessBase"]
[SourceQuality "1"]
[TimeControl "5400+30"]

1. d4 {[%emt 1:30:30]} Nf6 {[%emt 1:30:30]} 2. c4 {[%emt 0:00:30]} e6 {[%emt 0:00:30]} 3. Nc3 {[%emt 0:00:30]} Bb4 {[%emt 0:00:30]} 4. e3 {[%emt 0:00:30]} O-O {[%emt 0:00:30]} 5. Nge2 {[%emt 0:00:30]} Re8 {[%emt 0:00:30]} 6. a3 {[%emt 0:00:30]} Bf8 {[%emt 0:00:30]} 7. Ng3 {[%emt 0:00:30]} d5 {[%emt 0:00:30]} 8. cxd5 {[%emt 0:00:30]} exd5 {[%emt 0:00:30]} 9. Be2 {[%emt 0:00:30]} b6 {[%emt 0:00:30]} 10. b4 {[%emt 0:00:30]} c5 {[%emt 0:00:30]} 11. bxc5 {[%emt 0:00:30]} bxc5 {[%emt 0:00:30]} 12. dxc5 {[%emt 0:00:30]} Qa5 {[%emt 0:00:30]} 13. Bd2 {[%emt 0:00:30]} Qxc5 {[%emt 0:00:30]} 14. O-O {[%emt 0:00:30]} Ba6 {[%emt 0:00:30]} 15. Bxa6 {[%emt 0:00:30]} Nxa6 {[%emt 0:00:30]} 16. Qa4 {[%emt 0:00:30]} Qc8 {[%emt 0:00:30]} 17. Nce2 {[%emt 0:00:30]} Nc5 {[%emt 0:00:30]} 18. Qd1 {[%emt 0:00:30]} Qa6 {[%emt 0:00:30]} 19. Bb4 {[%emt 0:00:30]} Rad8 {[%emt 0:00:30]} 20. Nd4 {[%emt 0:00:30]} Nce4 {[%emt 0:00:30]} 21. Nge2 {[%emt 0:00:30]} Rc8 {[%emt 0:00:30]} 22. Nf4 {[%emt 0:00:30]} g6 {[%emt 0:00:30]} 23. Qd3 {[%emt 0:00:30]} Qc4 {[%emt 0:00:30]} 24. Qb1 {[%emt 0:00:30]} Bh6 {[%emt 0:00:30]} 25. Rc1 {[%emt 0:00:30]} Qa6 {[%emt 0:00:30]} 26. Qb2 {[%emt 0:00:30]} Bxf4 {[%emt 0:00:30]} 27. exf4 {[%emt 0:00:30]} Rxc1+ {[%emt 0:00:30]} 28. Rxc1 {[%emt 0:00:30]} Qd3 {[%emt 0:00:30]} 29. Nc6 {[%emt 0:00:30]} h5 {[%emt 0:00:30]} 30. h3 {[%emt 0:00:30]} h4 {[%emt 0:00:30]} 31. Ne5 {[%emt 0:00:30]} Qb5 {[%emt 0:00:30]} 32. Qd4 {[%emt 0:00:30]} Qb7 {[%emt 0:00:30]} 33. Nc6 {[%emt 0:00:30]} a5 {[%emt 0:00:30]} 34. Bxa5 {[%emt 0:00:30]} Nh5 {[%emt 0:00:30]} 35. Bd2 {[%emt 0:00:30]} Qb5 {[%emt 0:00:30]} 36. Be3 {[%emt 0:00:30]} Ng7 {[%emt 0:00:30]} 37. Qb4 {[%emt 0:00:30]} Qd3 {[%emt 0:00:30]} 38. Ne5 {[%emt 0:00:30]} Qa6 {[%emt 0:00:30]} 39. Qb3 {[%emt 0:00:30]} Qa8 {[%emt 0:00:30]} 40. Ng4 {[%emt 0:00:30]} Nf5 {[%emt 0:00:30]} 41. f3 {[%emt 0:00:30]} Rb8 {[%emt 0:00:30]} 42. Qd3 {[%emt 0:00:30]} Neg3 {[%emt 0:00:30]} 43. Kh2 {[%emt 0:00:30]} Rc8 {[%emt 0:00:30]} 44. Re1 {[%emt 0:00:30]} Qc6 {[%emt 0:00:30]} 45. Bd4 {[%emt 0:00:30]} Qc4 {[%emt 0:00:30]} 46. Nf6+ {[%emt 0:00:30]} Kf8 {[%emt 0:00:30]} 47. Qxc4 {[%emt 0:00:30]} dxc4 48. Bc3 {[%emt 0:00:30]} Ne3 {[%emt 0:01:00]} 49. Kg1 {[%emt 0:00:30]} Ngf5 {[%emt 0:00:30]} 50. Kf2 {[%emt 0:00:30]} Rd8 {[%emt 0:00:30]} 51. Bb4+ {[%emt 0:00:30]} Kg7 {[%emt 0:00:30]} 52. Ne4 {[%emt 0:00:30]} Rd3 {[%emt 0:00:30]} 53. Bc3+ {[%emt 0:00:30]} Kh6 {[%emt 0:00:30]} 54. Bd2 {[%emt 0:00:30]} Nd5 {[%emt 0:00:30]} 55. Bc1 {[%emt 0:00:30]} f6 {[%emt 0:00:30]} 56. a4 {[%emt 0:00:30]} c3 {[%emt 0:00:30]} 57. a5 {[%emt 0:00:30]} Rd4 {[%emt 0:00:30]} 58. Nc5 {[%emt 0:00:30]} Rc4 {[%emt 0:00:30]} 59. Ba3 {[%emt 0:00:30]} Nd4 {[%emt 0:00:30]} 60. Nd7 {[%emt 0:00:30]} Ra4 {[%emt 0:00:30]} 61. Bf8+ {[%emt 0:00:30]} Kh7 {[%emt 0:00:30]} 62. Bc5 {[%emt 0:00:30]} Ra2+ {[%emt 0:00:30]} 63. Kf1 {[%emt 0:00:30]} Nf5 {[%emt 0:00:30]} 64. Nb6 {[%emt 0:00:30]} Nxf4 {[%emt 0:00:30]} 65. Bf2 {[%emt 0:00:30]} Nd3 {[%emt 0:00:30]} 66. Rb1 {[%emt 0:00:30]} 0-1

[Event "VIII Lorca Open-A 2019"]
[Site "Lorca"]
[Date "2019.12.28"]
[Round "5.7"]
[White "Narciso Dublan, Marc"]
[Black "Peng, Li Min"]
[Result "1-0"]
[ECO "A42"]
[WhiteElo "2516"]
[BlackElo "2451"]
[Annotator "ChessBase"]
[PlyCount "105"]
[EventDate "2019.12.26"]
[EventType "swiss"]
[EventCountry "ESP"]
[SourceTitle "playchess.com"]
[Source "ChessBase"]
[SourceQuality "1"]
[TimeControl "5400+30"]

1. c4 {[%emt 0:02:43]} g6 {[%emt 0:01:08]} 2. d4 {[%emt 0:00:18]} Bg7 {[%emt 0:00:17]} 3. e4 {[%emt 0:00:15]} d6 {[%emt 0:00:12]} 4. Nc3 {[%emt 0:00:19]} e5 {[%emt 0:00:08]} 5. Nge2 {[%emt 0:04:14]} Ne7 {[%emt 0:01:40]} 6. dxe5 {[%emt 0:04:21]} dxe5 {[%emt 0:00:20]} 7. Qxd8+ {[%emt 0:00:07]} Kxd8 {[%emt 0:00:04]} 8. Bg5 {[%emt 0:00:11]} c6 {[%emt 0:00:15]} 9. Rd1+ {[%emt 0:01:18]} Ke8 {[%emt 0:00:33]} 10. Nc1 {[%emt 0:01:26]} Be6 {[%emt 0:00:19]} 11. b4 {[%emt 0:04:34]} f5 {[%emt 0:04:44]} 12. exf5 {[%emt 0:03:53]} gxf5 {[%emt 0:01:18]} 13. Nb3 {[%emt 0:02:07]} Nd7 {[%emt 0:04:32]} 14. Be2 {[%emt 0:20:21]} Kf7 {[%emt 0:13:40]} 15. Na5 {[%emt 0:06:22]} Rab8 {[%emt 0:02:42]} 16. O-O {[%emt 0:04:28]} Rhc8 {[%emt 0:12:03]} 17. c5 {[%emt 0:10:34]} e4 {[%emt 0:04:22]} 18. Bh5+ {[%emt 0:03:50]} Ng6 {[%emt 0:02:48]} 19. Ne2 {[%emt 0:01:18]} Nf6 {[%emt 0:04:43]} 20. Bxg6+ {[%emt 0:00:45]} hxg6 {[%emt 0:00:30]} 21. Bf4 {[%emt 0:00:08]} b6 {[%emt 0:00:04]} 22. Nxc6 {[%emt 0:02:10]} Rxc6 {[%emt 0:00:04]} 23. Bxb8 {[%emt 0:00:13]} bxc5 {[%emt 0:00:23]} 24. bxc5 {[%emt 0:02:27]} Rxc5 {[%emt 0:03:54]} 25. Bxa7 {[%emt 0:02:03]} Ra5 {[%emt 0:01:33]} 26. Bd4 {[%emt 0:00:30]} Rxa2 {[%emt 0:02:48]} 27. Nc3 {[%emt 0:00:25]} Ra6 {[%emt 0:04:46]} 28. Ra1 {[%emt 0:00:55]} Rc6 {[%emt 0:00:01]} 29. Ra7+ {[%emt 0:01:36]} Nd7 {[%emt 0:00:51]} 30. Bxg7 {[%emt 0:02:14]} Kxg7 {[%emt 0:00:04]} 31. Nb5 {[%emt 0:00:32]} Kf6 {[%emt 0:01:03]} 32. Nd4 {[%emt 0:02:46]} Rd6 {[%emt 0:00:01]} 33. Nxe6 {[%emt 0:00:18]} Kxe6 {[%emt 0:00:03]} 34. Rfa1 {[%emt 0:02:11]} Nc5 {[%emt 0:01:56]} 35. h4 {[%emt 0:02:21]} Ke5 {[%emt 0:00:01]} 36. R7a5 {[%emt 0:02:40]} Kd4 {[%emt 0:00:01]} 37. g3 {[%emt 0:02:30]} Rb6 {[%emt 0:03:15]} 38. Rd1+ {[%emt 0:04:38]} Nd3 {[%emt 0:00:01]} 39. h5 {[%emt 0:00:10]} gxh5 {[%emt 0:00:13]} 40. Rxf5 {[%emt 0:00:11]} e3 {[%emt 0:01:33]} 41. fxe3+ {[%emt 0:02:35]} Kxe3 {[%emt 0:08:12]} 42. Rxh5 {[%emt 0:00:12]} Rg6 {[%emt 0:00:02]} 43. Kh2 {[%emt 0:00:28]} Nf2 {[%emt 0:09:21]} 44. Re1+ {[%emt 0:00:39]} Kd4 {[%emt 0:00:01]} 45. Rh8 {[%emt 0:01:41]} Rd6 {[%emt 0:03:44]} 46. Rh4+ {[%emt 0:01:43]} Kc3 {[%emt 0:00:17]} 47. Kg2 {[%emt 0:01:07]} Nd3 {[%emt 0:00:38]} 48. Re2 {[%emt 0:00:24]} Rg6 {[%emt 0:00:46]} 49. Rhe4 {[%emt 0:00:19]} Nc5 {[%emt 0:00:28]} 50. Re8 {[%emt 0:00:50]} Rd6 {[%emt 0:05:22]} 51. g4 {[%emt 0:00:28]} Kd3 {[%emt 0:01:40]} 52. Kg3 {[%emt 0:00:30]} Nd7 {[%emt 0:03:34]} 53. R2e6 {[%emt 0:00:25]} 1-0